bitfinex/quotes_ETHUSD_20250726
["timestamp","ask_amount","ask_price","bid_price","bid_amount"]
[1753515270786,9.86869143,3748.7,3748.6,0.001]
[1753515270986,10.31289143,3748.7,3748.6,0.001]
[1753515273310,10.56239279,3748.7,3748.6,0.001]
[1753515273473,10.11819279,3748.7,3748.6,0.001]
[1753515273916,40.56239279,3748.7,3748.6,0.001]
[1753515274282,40.56239279,3748.7,3748.6,1e-08]
[1753515275392,40.70316313,3748.7,3748.6,1e-08]
[1753515275603,37.05040493,3748.4,3748.3,1e-08]
[1753515275804,39.84650629,3748.4,3748.3,1e-08]
[1753515275982,40.76710629,3748.4,3748.3,1e-08]
[1753515278427,40.90786549,3748.4,3748.3,1e-08]
[1753515281293,47.96786549,3748.4,3748.3,1e-08]
[1753515282731,47.96777535,3748.4,3748.3,1e-08]
[1753515283947,43.95057535,3748.4,3748.3,1e-08]
[1753515284148,16.22591254,3748.4,3748.3,0.95310001]
[1753515286743,16.22591254,3748.4,3748.3,0.46840001]
[1753515287242,9.16591254,3748.4,3748.3,0.46840001]
[1753515289149,6.74991254,3748.4,3748.3,0.46840001]
[1753515289328,6.74991254,3748.4,3748.3,0.95240001]
[1753515289329,5.91731254,3748.4,3748.3,0.95240001]
[1753515289531,3.24950761,3748.4,3748.3,0.95240001]
[1753515289705,5.66450761,3748.4,3748.3,0.95240001]
[1753515290104,8.33231254,3748.4,3748.3,0.95240001]
[1753515291436,8.33225935,3748.4,3748.3,0.95240001]
[1753515292801,8.08280493,3748.4,3748.3,0.95240001]
[1753515294003,8.21640493,3748.4,3748.3,0.95240001]
[1753515296924,5.5486,3748.4,3748.3,0.95240001]
[1753515298237,8.21640493,3748.4,3748.3,0.95240001]
[1753515298742,5.5486,3748.4,3748.3,0.95240001]
[1753515299450,8.21640493,3748.4,3748.3,0.95240001]
[1753515300345,8.21640493,3748.4,3748.3,0.46840001]
[1753515300509,9.46310493,3748.4,3748.3,1e-08]
[1753515300714,10.69158393,3748.4,3748.3,1e-08]
[1753515300915,40.69158393,3748.4,3748.3,1e-08]
[1753515301115,40.83241627,3748.4,3748.3,1e-08]
[1753515301955,40.69158393,3748.4,3748.3,1e-08]
[1753515303044,40.83247037,3748.4,3748.3,1e-08]
[1753515303421,10.83247037,3748.4,3748.3,1e-08]
[1753515303622,40.83247037,3748.4,3748.3,1e-08]
[1753515308064,40.44180493,3748.4,3748.3,1e-08]
[1753515308380,40.83270323,3748.4,3748.3,1e-08]
[1753515308667,40.83269776,3748.4,3748.3,1e-08]
[1753515309263,40.98267819,3748.4,3748.3,1e-08]
[1753515310367,40.98267916,3748.4,3748.3,1e-08]
[1753515311129,40.55397916,3748.4,3748.3,1e-08]
[1753515311330,40.55397942,3748.4,3748.3,1e-08]
[1753515311597,40.55598065,3748.4,3748.3,1e-08]
[1753515311865,40.40599802,3748.4,3748.3,1e-08]
[1753515316277,40.01510493,3748.4,3748.3,1e-08]
[1753515316479,40.40596048,3748.4,3748.3,1e-08]
[1753515317184,40.40595369,3748.4,3748.3,1e-08]
[1753515321185,10.40595369,3748.4,3748.3,1e-08]
[1753515321386,40.40595369,3748.4,3748.3,1e-08]
[1753515323254,40.40593451,3748.4,3748.3,1e-08]
[1753515325894,40.4059542,3748.4,3748.3,1e-08]
[1753515328189,40.55598465,3748.4,3748.3,1e-08]
[1753515328775,44.70269355,3748.4,3748.3,1e-08]
[1753515330076,44.90192237,3748.4,3748.3,1e-08]
[1753515331100,45.03549846,3748.4,3748.3,1e-08]
[1753515331764,44.57919846,3748.4,3748.3,1e-08]
[1753515332903,45.03549846,3748.4,3748.3,1e-08]
[1753515333303,59.53549846,3748.4,3748.3,1e-08]
[1753515334488,66.59549846,3748.4,3748.3,1e-08]
[1753515335106,3.21837442,3747.6,3747.5,0.001]
[1753515335260,39.02322369,3747.6,3747.5,0.001]
[1753515335488,39.15682369,3747.6,3747.5,0.4556]
[1753515337040,36.15682369,3747.6,3747.5,0.4556]
[1753515337600,36.15682369,3747.6,3747.5,0.9308]
[1753515338532,36.15682369,3747.6,3747.5,0.4556]
[1753515340536,36.15681168,3747.6,3747.5,0.4556]
[1753515341735,6.15681168,3747.6,3747.5,0.4556]
[1753515341926,36.15681168,3747.6,3747.5,0.4556]
[1753515343040,36.15681168,3747.6,3747.5,0.001]
[1753515343607,39.15681168,3747.6,3747.5,0.001]
[1753515343808,39.15681168,3747.6,3747.5,0.4556]
[1753515344209,39.15681168,3747.6,3747.5,0.9308]
[1753515345338,39.0159108,3747.6,3747.5,0.9308]
[1753515345930,39.15677641,3747.6,3747.5,0.9308]
[1753515346241,39.0159108,3747.6,3747.5,0.001]
[1753515346608,39.0159108,3747.6,3747.5,0.4556]
[1753515347213,39.15677633,3747.6,3747.5,0.4556]
[1753515347413,39.15677633,3747.6,3747.5,0.9308]
[1753515348414,9.15677633,3747.6,3747.5,0.9308]
[1753515348615,39.15677633,3747.6,3747.5,0.9308]
[1753515349449,9.15677633,3747.6,3747.5,0.9308]
[1753515349632,39.15677633,3747.6,3747.5,0.9308]
[1753515349837,39.15677633,3747.6,3747.5,0.4556]
[1753515350033,39.15674792,3747.6,3747.5,0.4556]
[1753515350239,39.15674792,3747.6,3747.5,0.001]
[1753515353123,39.15674792,3747.6,3747.5,1e-08]
[1753515353330,39.62644792,3747.6,3747.5,1e-08]
[1753515356153,9.62644792,3747.6,3747.5,1e-08]
[1753515356553,39.62644792,3747.6,3747.5,1e-08]
[1753515358772,39.15674792,3747.6,3747.5,0.93830001]
[1753515360642,39.01588239,3747.6,3747.5,0.93830001]
[1753515360847,39.15686858,3747.6,3747.5,0.93830001]
[1753515364527,39.15686858,3747.6,3747.5,1e-08]
[1753515365721,39.1572401,3747.6,3747.5,1e-08]
[1753515366949,39.6269401,3747.6,3747.5,1e-08]
[1753515367659,39.77710885,3747.6,3747.5,1e-08]
[1753515369126,9.77710885,3747.6,3747.5,1e-08]
[1753515369327,39.77710885,3747.6,3747.5,1e-08]
[1753515372466,40.22870885,3747.6,3747.5,1e-08]
[1753515372964,39.77710885,3747.6,3747.5,1e-08]
[1753515373682,41.01000885,3747.6,3747.5,1e-08]
[1753515374268,40.55840885,3747.6,3747.5,1e-08]
[1753515374640,39.30840885,3747.6,3747.5,1e-08]
[1753515374831,36.89340885,3747.6,3747.5,0.93830001]
[1753515375030,39.30940885,3747.6,3747.5,0.93830001]
[1753515375234,36.7432401,3747.6,3747.5,0.93830001]
[1753515375567,39.1592401,3747.6,3747.5,0.93830001]
[1753515376369,39.30931036,3747.6,3747.5,0.93830001]
[1753515376687,39.31130366,3747.6,3747.5,0.93830001]
[1753515376866,39.31130366,3747.6,3747.5,0.46230001]
[1753515377870,39.31130366,3747.6,3747.5,1e-08]
[1753515378057,39.78390366,3747.6,3747.5,1e-08]
[1753515379755,40.56030366,3747.6,3747.5,1e-08]
[1753515379964,41.01310366,3747.6,3747.5,1e-08]
[1753515380145,40.56030366,3747.6,3747.5,1e-08]
[1753515381880,47.62030366,3747.6,3747.5,1e-08]
[1753515383379,36.44505926,3747.2,3747.1,1e-08]
[1753515383578,39.25231824,3747.2,3747.1,1e-08]
[1753515383753,40.40851824,3747.2,3747.1,1e-08]
[1753515387888,47.46851824,3747.2,3747.1,1e-08]
[1753515390478,17.46851824,3747.2,3747.1,1e-08]
[1753515390793,47.46851824,3747.2,3747.1,1e-08]
[1753515391493,46.99591824,3747.2,3747.1,1e-08]
[1753515391798,47.46851824,3747.2,3747.1,1e-08]
[1753515392981,46.42131725,3747.2,3747.1,1e-08]
[1753515393287,46.42131725,3747.2,3747.1,0.89700001]
[1753515393868,46.42131725,3747.2,3747.1,0.43430001]
[1753515394559,16.42131725,3747.2,3747.1,1e-08]
[1753515394761,46.89391725,3747.2,3747.1,1e-08]
[1753515398197,47.044045,3747.2,3747.1,1e-08]
[1753515400966,47.04407807,3747.2,3747.1,1e-08]
[1753515402099,47.32337807,3747.2,3747.1,1e-08]
[1753515402300,47.79597807,3747.2,3747.1,1e-08]
[1753515402797,46.57147807,3747.2,3747.1,1e-08]
[1753515402998,46.57147807,3747.2,3747.1,0.89700001]
[1753515404806,46.42135032,3747.2,3747.1,0.89700001]
[1753515405309,46.42135032,3747.2,3747.1,0.43430001]
[1753515405470,46.57147536,3747.2,3747.1,0.43430001]
[1753515407108,46.42135032,3747.2,3747.1,0.43430001]
[1753515407922,46.21955131,3747.2,3747.1,0.90730001]
[1753515408781,16.21955131,3747.2,3747.1,0.90730001]
[1753515409114,46.3697044,3747.2,3747.1,0.90730001]
[1753515409318,46.3697044,3747.2,3747.1,0.42970001]
[1753515409809,46.8431044,3747.2,3747.1,1e-08]
[1753515413122,46.84309547,3747.2,3747.1,1e-08]
[1753515415518,46.30165926,3747.2,3747.1,1e-08]
[1753515415823,46.84306333,3747.2,3747.1,1e-08]
[1753515419515,16.84306333,3747.2,3747.1,1e-08]
[1753515419716,46.84306333,3747.2,3747.1,1e-08]
[1753515420035,46.6929182,3747.2,3747.1,1e-08]
[1753515420238,46.84305544,3747.2,3747.1,1e-08]
[1753515420934,46.8430509,3747.2,3747.1,1e-08]
[1753515423110,47.1701509,3747.2,3747.1,1e-08]
[1753515423298,47.6435509,3747.2,3747.1,1e-08]
[1753515424904,50.3134014,3747.2,3747.1,1e-08]
[1753515426719,20.3134014,3747.2,3747.1,1e-08]
[1753515426918,50.3134014,3747.2,3747.1,1e-08]
[1753515427136,64.3400014,3747.2,3747.1,1e-08]
[1753515427341,61.6701509,3747.2,3747.1,1e-08]
[1753515428455,62.1435509,3747.2,3747.1,1e-08]
[1753515428752,32.1435509,3747.2,3747.1,1e-08]
[1753515428956,62.1435509,3747.2,3747.1,1e-08]
[1753515429852,32.1435509,3747.2,3747.1,1e-08]
[1753515430044,62.1435509,3747.2,3747.1,1e-08]
[1753515430826,32.1435509,3747.2,3747.1,1e-08]
[1753515431026,62.1435509,3747.2,3747.1,1e-08]
[1753515432968,32.1435509,3747.2,3747.1,1e-08]
[1753515433176,62.1435509,3747.2,3747.1,1e-08]
[1753515434563,32.1435509,3747.2,3747.1,1e-08]
[1753515434773,0.55,3746.8,3746.6,0.001]
[1753515434968,36.21523734,3746.7,3746.6,0.001]
[1753515435155,39.78240704,3746.7,3746.6,0.001]
[1753515435473,39.92187894,3746.7,3746.6,0.001]
[1753515436754,39.78070157,3746.7,3746.6,0.001]
[1753515436955,39.92164069,3746.7,3746.6,0.001]
[1753515440164,39.77156034,3746.7,3746.6,0.001]
[1753515440365,39.92163553,3746.7,3746.6,0.001]
[1753515440943,39.44823553,3746.7,3746.6,0.9014]
[1753515443843,39.44825055,3746.7,3746.6,0.9014]
[1753515444790,39.45025055,3746.7,3746.6,0.9014]
[1753515445149,9.45025055,3746.7,3746.6,0.9014]
[1753515445451,39.45025055,3746.7,3746.6,0.9014]
[1753515447253,39.45025055,3746.7,3746.6,0.4499]
[1753515447448,9.45025055,3746.7,3746.6,0.4499]
[1753515447648,39.45025055,3746.7,3746.6,0.4499]
[1753515448269,39.45025055,3746.7,3746.6,0.001]
[1753515450555,39.45031665,3746.7,3746.6,0.001]
[1753515450755,39.90321665,3746.7,3746.6,0.001]
[1753515452285,40.67351665,3746.7,3746.6,0.001]
[1753515452668,40.67356235,3746.7,3746.6,0.001]
[1753515452875,40.67356235,3746.7,3746.5,0.001]
[1753515452876,6.21908663,3746.6,3746.5,0.001]
[1753515453075,39.62926168,3746.6,3746.5,0.001]
[1753515453483,39.17636168,3746.6,3746.5,0.001]
[1753515453855,39.62926168,3746.6,3746.5,0.001]
[1753515458087,39.02628649,3746.6,3746.5,0.001]
[1753515458288,39.02628649,3746.6,3746.5,0.9014]
[1753515458488,39.02632291,3746.6,3746.5,0.9014]
[1753515458698,9.02632291,3746.6,3746.5,0.9014]
[1753515459003,39.02632291,3746.6,3746.5,0.001]
[1753515459389,39.17647754,3746.6,3746.5,0.001]
[1753515460184,39.02632291,3746.6,3746.5,0.001]
[1753515460377,39.02632291,3746.6,3746.5,0.4499]
[1753515460999,38.98012812,3746.6,3746.5,0.4499]
[1753515461302,39.38056898,3746.6,3746.5,0.4499]
[1753515462173,39.38056898,3746.6,3746.5,0.001]
[1753515463301,39.23039833,3746.6,3746.5,0.001]
[1753515463607,39.38060072,3746.6,3746.5,0.001]
[1753515464804,9.38060072,3746.6,3746.5,0.001]
[1753515465003,39.38060072,3746.6,3746.5,0.001]
[1753515465205,39.83350072,3746.6,3746.5,0.001]
[1753515469305,39.83360686,3746.6,3746.5,0.001]
[1753515474721,39.58323051,3746.6,3746.5,0.001]
[1753515474893,39.83361075,3746.6,3746.5,0.001]
[1753515475093,39.83363651,3746.6,3746.5,0.001]
[1753515475292,40.60233651,3746.6,3746.5,0.001]
[1753515475815,10.60233651,3746.6,3746.5,0.001]
[1753515476002,40.60233651,3746.6,3746.5,0.001]
[1753515476516,40.60242493,3746.6,3746.5,0.001]
[1753515476832,40.13482493,3746.6,3746.5,0.001]
[1753515477118,40.60242493,3746.6,3746.5,0.001]
[1753515478688,40.60243874,3746.6,3746.5,0.001]
[1753515479716,40.60246166,3746.6,3746.5,0.001]
[1753515481722,40.60246166,3746.6,3746.5,1e-08]
[1753515482589,36.21915788,3746.5,3746.4,1e-08]
[1753515482923,42.44805117,3746.5,3746.4,1e-08]
[1753515483122,36.21922912,3746.4,3746.3,1e-08]
[1753515483420,46.70355456,3746.4,3746.3,1e-08]
[1753515484617,46.16182912,3746.4,3746.3,1e-08]
[1753515484928,46.70339084,3746.4,3746.3,1e-08]
[1753515486511,16.70339084,3746.4,3746.3,1e-08]
[1753515486716,46.70339084,3746.4,3746.3,1e-08]
[1753515487817,46.7033282,3746.4,3746.3,1e-08]
[1753515488507,46.2357282,3746.4,3746.3,1e-08]
[1753515488899,46.7033282,3746.4,3746.3,1e-08]
[1753515490628,46.7032507,3746.4,3746.3,1e-08]
[1753515491607,16.7032507,3746.4,3746.3,1e-08]
[1753515491810,46.7032507,3746.4,3746.3,1e-08]
[1753515492715,61.2032507,3746.4,3746.3,1e-08]
[1753515493998,36.21951414,3746.0,3745.9,0.2495]
[1753515494317,39.15939974,3746.0,3745.9,0.2495]
[1753515496235,39.15939974,3746.0,3745.9,0.6865]
[1753515496440,39.15921273,3746.0,3745.9,0.6865]
[1753515497047,39.15920918,3746.0,3745.9,0.6865]
[1753515497835,9.15920918,3746.0,3745.9,0.6865]
[1753515498136,39.15920918,3746.0,3745.9,0.6865]
[1753515498340,39.15920918,3746.0,3745.9,0.2495]
[1753515498518,39.62250918,3746.0,3745.9,0.2495]
[1753515501957,39.62250918,3746.0,3745.8,0.001]
[1753515501958,36.21958541,3745.9,3745.8,1e-08]
[1753515502111,36.21958541,3745.9,3745.7,1e-08]
[1753515502112,7.04075668,3745.8,3745.7,1e-08]
[1753515502315,40.90365172,3745.8,3745.7,1e-08]
[1753515505747,55.40365172,3745.8,3745.7,1e-08]
[1753515506137,62.46365172,3745.8,3745.7,1e-08]
[1753515506447,32.46365172,3745.8,3745.7,1e-08]
[1753515506648,62.46365172,3745.8,3745.7,1e-08]
[1753515507047,32.46359958,3745.8,3745.7,1e-08]
[1753515507279,62.46359958,3745.8,3745.7,1e-08]
[1753515508255,62.46357782,3745.8,3745.7,1e-08]
[1753515510738,62.61364332,3745.8,3745.7,1e-08]
[1753515510942,62.15474332,3745.8,3745.7,1e-08]
[1753515511152,62.15474679,3745.8,3745.7,1e-08]
[1753515513653,62.00467782,3745.8,3745.7,1e-08]
[1753515514524,61.75455197,3745.8,3745.7,1e-08]
[1753515515247,61.61365668,3745.8,3745.7,1e-08]
[1753515515959,61.75314559,3745.8,3745.7,1e-08]
[1753515516333,31.75314559,3745.8,3745.7,1e-08]
[1753515516627,61.75314559,3745.8,3745.7,1e-08]
[1753515520777,43.15275867,3745.8,3745.7,1e-08]
[1753515521074,43.39357861,3745.8,3745.7,0.91040001]
[1753515521236,42.6700897,3745.8,3745.7,0.91040001]
[1753515521430,46.2200897,3745.8,3745.7,0.91040001]
[1753515521629,33.1940897,3745.8,3745.7,0.91040001]
[1753515521869,35.6100897,3745.8,3745.7,1.66070001]
[1753515522049,38.6100897,3745.8,3745.7,1.66070001]
[1753515522246,38.61010718,3745.8,3745.7,1.66070001]
[1753515522559,38.46925583,3745.8,3745.7,1.66070001]
[1753515523663,8.46925583,3745.8,3745.7,1.66070001]
[1753515524768,38.46925583,3745.8,3745.7,1.66070001]
[1753515526929,38.46925583,3745.8,3745.7,1.20600001]
[1753515531935,0.24999915,3745.8,3745.7,1.65690001]
[1753515532140,0.002,3746.0,3745.8,0.7678]
[1753515532436,0.002,3746.0,3745.8,0.891]
[1753515532437,2.417,3745.9,3745.8,0.891]
[1753515532657,2.417,3745.9,3745.8,1.6588]
[1753515532857,0.002,3746.0,3745.9,0.7678]
[1753515533261,2.419,3746.0,3745.9,1.6588]
[1753515533772,2.419,3746.0,3745.9,4.32976785]
[1753515534339,0.002,3746.0,3745.9,6.99935326]
[1753515534884,0.002,3746.0,3745.9,4.32838541]
[1753515535567,0.002,3746.0,3745.9,1.6588]
[1753515536149,0.002,3746.0,3745.9,4.32838541]
[1753515536563,0.002,3746.0,3745.9,4.35508126]
[1753515537056,0.002,3746.0,3745.9,4.32838541]
[1753515541982,0.002,3746.0,3745.9,4.46198541]
[1753515554683,0.002,3746.0,3745.9,6.87798541]
[1753515560000,0.002,3746.0,3745.9,6.42708541]
[1753515561089,0.002,3746.0,3745.9,3.57098541]
[1753515561296,0.002,3746.0,3745.9,5.98598541]
[1753515561493,0.002,3746.0,3745.9,2.80318541]
[1753515561694,0.002,3746.0,3745.7,1e-08]
[1753515561695,0.934,3746.0,3745.7,1e-08]
[1753515561938,0.002,3746.0,3745.7,1e-08]
[1753515562198,0.1336,3745.8,3745.7,0.02669728]
[1753515562396,0.6215,3745.8,3745.7,0.02669728]
[1753515562600,1.0656,3745.8,3745.7,0.02669728]
[1753515565007,1.0656,3745.8,3745.7,1e-08]
[1753515571486,4.53485668,3745.8,3745.7,1e-08]
[1753515571688,37.40125668,3745.8,3745.7,1e-08]
[1753515572728,40.36825668,3745.8,3745.7,1e-08]
[1753515575227,10.36825668,3745.8,3745.7,1e-08]
[1753515575425,40.36825668,3745.8,3745.7,1e-08]
[1753515578817,40.95628767,3745.8,3745.7,1e-08]
[1753515579192,40.81582195,3745.8,3745.7,1e-08]
[1753515580617,10.81582195,3745.8,3745.7,1e-08]
[1753515580929,40.81582195,3745.8,3745.7,1e-08]
[1753515581298,40.56645624,3745.8,3745.7,1e-08]
[1753515581751,40.70005624,3745.8,3745.7,1e-08]
[1753515582734,10.70005624,3745.8,3745.7,1e-08]
[1753515582897,40.70005624,3745.8,3745.7,1e-08]
[1753515584635,33.60285668,3745.8,3745.7,1e-08]
[1753515584834,5.22125668,3745.8,3745.7,0.45530001]
[1753515585026,8.22125668,3745.8,3745.7,0.45530001]
[1753515585220,8.22125668,3745.8,3745.7,1e-08]
[1753515585551,8.22125668,3745.8,3745.7,0.91490001]
[1753515585552,2.5526,3745.8,3745.7,0.91490001]
[1753515585834,0.1336,3745.8,3745.7,0.91490001]
[1753515586013,2.5526,3745.8,3745.7,0.91490001]
[1753515587303,2.5526,3745.8,3745.7,0.45530001]
[1753515596246,2.5526,3745.8,3745.7,1e-08]
[1753515596447,2.5526,3745.8,3745.7,0.90230001]
[1753515596966,2.5526,3745.8,3745.7,0.43210001]
[1753515598040,2.5526,3745.8,3745.7,0.90230001]
[1753515598242,0.1336,3745.8,3745.7,0.43210001]
[1753515598442,2.5516,3745.8,3745.7,1.68110001]
[1753515599729,2.5516,3745.8,3745.7,1.21090001]
[1753515600857,2.5516,3745.8,3745.7,1e-08]
[1753515601645,2.5516,3745.8,3745.7,0.43210001]
[1753515603059,2.5516,3745.8,3745.7,1e-08]
[1753515603259,3.0321,3745.8,3745.7,1e-08]
[1753515604540,2.5516,3745.8,3745.7,1e-08]
[1753515607272,2.5516,3745.8,3745.7,0.43210001]
[1753515608069,2.5516,3745.8,3745.7,1.66200001]
[1753515608244,2.418,3745.8,3745.7,1.66200001]
[1753515608645,0.1336,3745.9,3745.8,2.66965668]
[1753515608849,0.002,3746.0,3745.9,3.42928541]
[1753515609145,0.002,3746.0,3745.9,4.35828126]
[1753515609480,0.002,3746.0,3745.9,4.33158541]
[1753515609849,0.002,3746.0,3745.9,1.662]
[1753515610030,0.002,3746.0,3745.9,3.86138541]
[1753515610847,0.002,3746.0,3745.9,4.33158541]
[1753515615172,0.002,3746.0,3745.9,3.86138541]
[1753515615744,0.002,3746.0,3745.9,3.42928541]
[1753515616075,0.002,3746.0,3745.9,3.86138541]
[1753515616454,0.002,3746.0,3745.9,4.33158541]
[1753515617311,0.002,3746.0,3745.9,3.86138541]
[1753515618309,0.002,3746.0,3745.9,3.42928541]
[1753515618964,0.002,3746.0,3745.9,3.85928541]
[1753515619982,0.002,3746.0,3745.9,3.42928541]
[1753515620171,0.4867,3746.0,3745.9,5.66958541]
[1753515621387,0.002,3746.0,3745.9,5.66958541]
[1753515621580,0.002,3746.0,3745.9,6.09958541]
[1753515623291,0.002,3746.0,3745.9,5.66958541]
[1753515623585,0.4867,3746.0,3745.9,5.66958541]
[1753515625677,0.4867,3746.0,3745.9,2.66958541]
[1753515633368,0.002,3746.0,3745.9,2.66958541]
[1753515636765,0.002,3746.0,3745.9,3.09958541]
[1753515639105,0.002,3746.0,3745.9,2.66958541]
[1753515641688,0.4867,3746.0,3745.9,2.66958541]
[1753515642293,0.002,3746.0,3745.9,2.66958541]
[1753515642494,0.002,3746.0,3745.9,3.12628126]
[1753515644932,0.002,3746.0,3745.9,2.69628126]
[1753515645136,0.002,3746.0,3745.9,6.80758126]
[1753515645304,0.002,3746.0,3745.9,6.91448541]
[1753515647732,0.002,3746.0,3745.9,6.43968541]
[1753515647942,0.002,3746.0,3745.9,6.91028541]
[1753515649318,0.002,3746.0,3745.9,6.43968541]
[1753515652704,0.002,3746.0,3745.9,6.91028541]
[1753515654556,0.002,3746.0,3745.9,6.43968541]
[1753515657735,0.002,3746.0,3745.9,6.00968541]
[1753515659035,0.002,3746.0,3745.9,6.48188541]
[1753515662123,0.002,3746.0,3745.9,4.06688541]
[1753515662320,0.002,3746.0,3745.9,6.48188541]
[1753515662521,0.002,3746.6,3745.9,6.95248541]
[1753515662772,0.002,3746.6,3746.5,7.15941375]
[1753515662923,0.002,3746.6,3746.5,9.57441375]
[1753515663119,0.002,3746.6,3746.5,9.70801375]
[1753515663434,0.002,3746.6,3746.5,5.21775788]
[1753515663435,0.46,3746.6,3746.5,5.21775788]
[1753515663636,0.9315,3746.6,3746.5,5.21775788]
[1753515664924,0.46,3746.6,3746.5,8.91341375]
[1753515665119,0.002,3746.6,3746.5,8.91341375]
[1753515665350,0.002,3746.6,3746.5,10.67881375]
[1753515665736,0.002,3747.3,3747.2,2.66865926]
[1753515666062,0.002,3747.3,3747.2,9.76220172]
[1753515666260,0.002,3747.3,3747.2,10.67831513]
[1753515674858,0.002,3747.3,3747.2,10.20771513]
[1753515675061,0.002,3747.5,3747.3,3.49678805]
[1753515675260,0.002,3747.5,3747.3,3.99567393]
[1753515675464,0.002,3747.5,3747.3,4.46627393]
[1753515676852,0.002,3747.5,3747.3,3.49678805]
[1753515678302,0.4951,3747.4,3747.3,5.91078805]
[1753515679401,0.4951,3747.4,3747.3,6.49678805]
[1753515679591,0.9451,3747.4,3747.3,8.08258805]
[1753515683110,0.9451,3747.4,3747.3,5.66858805]
[1753515683517,0.9451,3747.4,3747.3,8.08258805]
[1753515684119,0.9451,3747.4,3747.3,5.08258805]
[1753515686811,0.9451,3747.4,3747.3,2.66858805]
[1753515687122,0.9451,3747.4,3747.3,5.08258805]
[1753515690805,0.9451,3747.4,3747.3,2.66858805]
[1753515691004,0.9451,3747.4,3747.3,5.08258805]
[1753515693456,0.9451,3747.4,3747.3,2.66858805]
[1753515693825,0.9451,3747.4,3747.3,5.08258805]
[1753515694663,0.9451,3747.4,3747.3,2.66858805]
[1753515694969,0.9451,3747.4,3747.3,5.08258805]
[1753515696156,0.4951,3747.4,3747.3,5.08258805]
[1753515696537,0.002,3747.4,3747.3,5.08258805]
[1753515697360,0.002,3747.4,3747.3,5.55068805]
[1753515699765,0.002,3747.4,3747.3,6.02158805]
[1753515701252,0.002,3747.4,3747.3,5.55068805]
[1753515701453,1e-08,3747.5,3747.4,6.41911683]
[1753515701970,1e-08,3747.5,3747.4,7.49171683]
[1753515717194,0.002,3747.8,3747.7,2.66830322]
[1753515717399,0.002,3747.8,3747.7,12.57734212]
[1753515717567,0.002,3748.1,3748.0,2.66808964]
[1753515717768,0.4913,3748.1,3748.0,5.10777053]
[1753515717968,0.4913,3748.1,3748.0,5.24137053]
[1753515719994,0.002,3748.1,3748.0,9.03097053]
[1753515720195,0.002,3748.1,3748.0,9.46278964]
[1753515720900,0.002,3748.1,3748.0,9.00428964]
[1753515722208,0.002,3748.1,3748.0,9.46278964]
[1753515722412,1e-08,3748.2,3748.1,5.66801846]
[1753515722621,0.002,3748.6,3748.2,6.45754728]
[1753515722915,0.002,3748.6,3748.5,6.49698963]
[1753515723084,0.002,3748.6,3748.5,11.90998963]
[1753515723611,0.4913,3748.6,3748.5,11.90998963]
[1753515730699,0.002,3748.6,3748.5,11.90998963]
[1753515731140,0.002,3748.6,3748.5,12.36848963]
[1753515731821,0.002,3748.6,3748.5,11.90998963]
[1753515732004,0.4913,3748.6,3748.5,11.90998963]
[1753515735041,0.4913,3748.6,3748.5,9.49698963]
[1753515735235,0.932,3748.6,3748.5,11.90998963]
[1753515736125,0.4913,3748.6,3748.5,11.90998963]
[1753515736652,0.4913,3748.6,3748.5,9.49698963]
[1753515736832,0.4913,3748.6,3748.5,11.90998963]
[1753515737142,0.932,3748.6,3748.5,11.90998963]
[1753515737963,0.932,3748.6,3748.5,9.49698963]
[1753515738144,0.932,3748.6,3748.5,11.90998963]
[1753515738655,0.932,3748.6,3748.5,5.80133376]
[1753515738821,0.932,3748.6,3748.5,8.21433376]
[1753515742734,0.932,3748.6,3748.5,5.80133376]
[1753515742935,0.932,3748.6,3748.5,8.21433376]
[1753515742936,1.75,3748.6,3748.5,8.21433376]
[1753515743127,1.75,3748.6,3748.5,5.21433376]
[1753515753489,0.002,3748.6,3748.5,5.21433376]
[1753515753693,0.002,3748.6,3748.5,5.24101109]
[1753515754056,0.453,3748.6,3748.5,5.24101109]
[1753515755186,0.453,3748.6,3748.5,5.21433376]
[1753515756191,0.453,3748.6,3748.5,2.80133376]
[1753515756495,0.453,3748.6,3748.5,5.21433376]
[1753515758393,0.453,3748.6,3748.5,2.80133376]
[1753515758581,0.453,3748.6,3748.5,5.21433376]
[1753515762012,1.2829,3748.6,3748.5,2.80133376]
[1753515762301,1.7479,3748.6,3748.5,5.21433376]
[1753515764398,1.7479,3748.6,3748.5,2.80133376]
[1753515764606,1.7479,3748.6,3748.5,5.21433376]
[1753515766996,1.7479,3748.6,3748.5,2.80133376]
[1753515767202,1.7479,3748.6,3748.5,5.21433376]
[1753515768715,1.7479,3748.6,3748.5,2.80133376]
[1753515769129,1.7479,3748.6,3748.5,5.21433376]
[1753515771029,1.2829,3748.6,3748.5,5.21433376]
[1753515772422,0.002,3748.6,3748.5,5.21433376]
[1753515772720,0.002,3748.6,3748.5,5.24101109]
[1753515772894,0.002,3748.6,3748.5,7.87949976]
[1753515773095,0.4618,3748.6,3748.5,7.87949976]
[1753515774943,0.002,3748.6,3748.5,5.64403376]
[1753515776935,0.002,3748.6,3748.5,5.21433376]
[1753515779034,0.4618,3748.6,3748.5,5.21433376]
[1753515780524,0.002,3748.6,3748.5,5.21433376]
[1753515780843,0.002,3748.6,3748.5,6.11883376]
[1753515781421,0.002,3748.6,3748.5,4.52173376]
[1753515781655,0.002,3748.6,3748.5,6.93473376]
[1753515783651,0.002,3748.6,3748.5,6.45993376]
[1753515783845,0.002,3748.6,3748.5,6.03023376]
[1753515784146,0.002,3748.6,3748.5,6.93473376]
[1753515786029,0.002,3748.6,3748.5,6.45993376]
[1753515788259,0.002,3748.6,3748.5,5.64403376]
[1753515795031,0.002,3748.6,3748.5,5.21433376]
[1753515796367,0.002,3748.6,3748.5,5.64403376]
[1753515796968,0.002,3748.6,3748.5,8.30903904]
[1753515801761,0.002,3748.6,3748.5,7.87933904]
[1753515802995,0.4933,3748.6,3748.5,7.87933904]
[1753515804814,0.002,3748.6,3748.5,2.80133376]
[1753515805034,0.9225,3748.6,3748.5,5.21433376]
[1753515808226,0.9225,3748.6,3748.5,5.08073376]